bitfinex-derivatives/quotes_ETHF0:USTF0_20250416
["timestamp","ask_amount","ask_price","bid_price","bid_amount"]
[1744776356132,1.6494,1593.2,1593.1,1.25551]
[1744776356337,1.6494,1593.2,1593.1,2.85661]
[1744776357037,1.25551,1593.1,1593.0,5.38152]
[1744776357235,2.09451,1593.1,1593.0,5.38152]
[1744776357941,0.839,1593.1,1593.0,5.38152]
[1744776358438,2.4191,1593.1,1593.0,5.38152]
[1744776358741,3.67461,1593.1,1593.0,5.38152]
[1744776359037,3.67461,1593.1,1593.0,5.37952]
[1744776359739,2.4191,1593.1,1593.0,5.37952]
[1744776362738,3.67461,1593.1,1593.0,5.37952]
[1744776363044,2.4191,1593.1,1593.0,5.37952]
[1744776364340,3.67461,1593.1,1593.0,5.37952]
[1744776364744,2.4191,1593.1,1593.0,5.37952]
[1744776367147,3.67461,1593.1,1593.0,5.37952]
[1744776368139,2.4191,1593.1,1593.0,5.37952]
[1744776368849,3.2078,1593.7,1593.2,4.39398]
[1744776369052,4.59819,1593.6,1593.4,1.25522]
[1744776369250,2.89089,1593.5,1593.4,1.25522]
[1744776369940,1.25527,1593.4,1593.3,4.13341885]
[1744776370140,2.91027,1593.4,1593.3,4.13341885]
[1744776372154,1.655,1593.4,1593.3,5.38876885]
[1744776372351,1.655,1593.4,1593.3,7.79876885]
[1744776372352,2.91027,1593.4,1593.3,7.79876885]
[1744776372659,2.96247,1593.6,1593.4,1.25521]
[1744776372858,4.61747,1593.6,1593.5,1.25519]
[1744776373051,4.61747,1593.6,1593.4,6.88422]
[1744776373458,3.74507,1593.6,1593.4,6.88422]
[1744776373752,3.13703,1594.0,1593.6,1.25512]
[1744776373952,3.76153,1593.8,1593.7,4.124]
[1744776374260,6.34466,1594.1,1593.7,46.179]
[1744776374458,1.25496,1593.8,1593.7,47.416]
[1744776375455,1.25496,1593.8,1593.7,44.924]
[1744776375661,6.25496,1593.8,1593.7,40.8]
[1744776375958,1.25496,1593.8,1593.7,40.8]
[1744776376157,2.92036,1593.8,1593.7,40.8]
[1744776376554,2.92036,1593.8,1593.7,42.05504]
[1744776376756,2.92036,1593.8,1593.7,40.8]
[1744776377057,2.92036,1593.8,1593.7,42.05504]
[1744776377964,2.92036,1593.8,1593.7,42.85224]
[1744776378263,1.6654,1593.8,1593.7,43.70554]
[1744776378762,2.09832,1594.0,1593.9,1.25488]
[1744776378962,3.76372,1594.0,1593.9,1.25488]
[1744776380065,1.25488,1593.9,1593.8,7.05629]
[1744776380263,1.25488,1593.9,1593.8,7.04707313]
[1744776380860,1.25488,1593.9,1593.8,4.123]
[1744776381054,1.25496,1593.8,1593.7,40.8]
[1744776381259,2.09706,1593.8,1593.7,44.923]
[1744776381965,3.73746,1593.8,1593.7,44.923]
[1744776382157,3.73746,1593.8,1593.7,46.17804]
[1744776383063,3.73746,1593.8,1593.7,44.923]
[1744776383865,3.73746,1593.8,1593.7,46.17804]
[1744776384364,2.89536,1593.8,1593.7,44.923]
[1744776385859,2.89536,1593.8,1593.7,46.17804]
[1744776386060,2.89536,1593.8,1593.7,44.923]
[1744776388160,2.89536,1593.8,1593.7,46.17804]
[1744776388365,2.89536,1593.8,1593.7,44.923]
[1744776390263,2.89536,1593.8,1593.7,46.17804]
[1744776390464,2.89536,1593.8,1593.7,44.923]
[1744776390868,2.89536,1593.8,1593.7,46.5122]
[1744776393168,2.89536,1593.8,1593.7,47.76724]
[1744776393475,1.25493,1593.9,1593.8,1.2549]
[1744776393672,1.25493,1593.9,1593.8,4.5312]
[1744776393877,1.25493,1593.9,1593.8,0.812]
[1744776394068,1.25496,1593.8,1593.7,46.17798]
[1744776394672,1.25496,1593.8,1593.7,47.81088]
[1744776396068,1.25496,1593.8,1593.7,46.5559]
[1744776397276,1.25496,1593.8,1593.7,47.81094]
[1744776398077,1.25496,1593.8,1593.7,46.5559]
[1744776398877,1.25496,1593.8,1593.7,40.8]
[1744776399079,2.08676,1593.8,1593.7,40.8]
[1744776400880,2.08676,1593.8,1593.7,42.05504]
[1744776401381,2.08676,1593.8,1593.7,40.8]
[1744776401773,1.25519,1593.5,1593.4,4.128]
[1744776401978,1.25527,1593.4,1593.3,0.84651885]
[1744776402280,5.29397,1593.4,1593.3,0.00941885]
[1744776402668,10.29397,1593.4,1593.3,1e-08]
[1744776402873,1.25543,1593.2,1593.1,20.97289644]
[1744776403083,4.46323,1593.2,1593.1,20.97289644]
[1744776403273,9.46323,1593.2,1593.1,20.97289644]
[1744776403581,10.32923,1593.2,1593.1,20.97289644]
[1744776403778,16.26523,1593.2,1593.1,13.88631529]
[1744776404282,20.39323,1593.2,1593.1,13.88631529]
[1744776405076,20.39323,1593.2,1593.1,12.43045529]
[1744776406677,20.39323,1593.2,1593.1,8.83604529]
[1744776406874,20.39323,1593.2,1593.1,4.57067529]
[1744776407280,20.39323,1593.2,1593.0,8.85e-06]
[1744776407281,1.25551,1593.1,1593.0,8.85e-06]
[1744776407480,8.87071,1593.1,1593.0,8.85e-06]
[1744776407670,13.87071,1593.1,1593.0,8.85e-06]
[1744776407871,13.87071,1593.1,1592.2,3.2078]
[1744776407872,12.6152,1593.1,1592.2,1.25619]
[1744776408075,1.25614,1592.3,1592.2,5.872]
[1744776409785,1.25614,1592.3,1592.2,7.12822]
[1744776410885,1.25614,1592.3,1592.2,5.872]
[1744776411087,1.25622,1592.2,1592.1,6.17949414]
[1744776411289,1.25622,1592.2,1592.1,7.77759414]
[1744776411684,1.25621,1592.3,1592.2,1.25621]
[1744776411885,1.25621,1592.3,1592.2,2.85431]
[1744776412989,1.25621,1592.3,1592.2,1.5981]
[1744776413292,6.15253885,1592.4,1592.2,1.5981]
[1744776413492,6.15253885,1592.4,1592.2,2.85425]
[1744776413493,1.25614,1592.3,1592.2,2.85425]
[1744776413887,1.25614,1592.3,1592.2,1.5981]
[1744776414391,2.83634,1592.3,1592.2,1.5981]
[1744776415083,1.25614,1592.3,1592.2,2.85432]
[1744776415484,1.25622,1592.2,1592.1,0.00941885]
[1744776415690,1.25622,1592.2,1592.1,2.92761885]
[1744776416987,1.25622,1592.2,1592.1,0.00941885]
[1744776417692,4.46402,1592.2,1592.1,0.00941885]
[1744776418093,6.17342,1592.2,1592.1,0.00941885]
[1744776419889,4.46402,1592.2,1592.1,1.63961885]
[1744776420386,4.46402,1592.2,1592.1,0.00941885]
[1744776422585,4.46402,1592.2,1592.1,1.66521885]
[1744776423084,4.46402,1592.2,1592.1,0.00941885]
[1744776423285,5.28392,1592.2,1592.1,0.00941885]
[1744776425195,4.46402,1592.2,1592.1,0.00941885]
[1744776425384,4.46402,1592.2,1592.1,1.26571885]
[1744776425585,4.46402,1592.2,1592.1,1.63841885]
[1744776425786,4.46402,1592.2,1592.1,0.00941885]
[1744776426189,4.46402,1592.2,1592.1,1.63841885]
[1744776426486,6.07172,1592.2,1592.1,1.63841885]
[1744776428690,17.00772,1592.2,1592.1,8.85e-06]
[1744776428896,1.25661,1591.7,1591.6,0.8247]
[1744776429094,1.25661,1591.7,1591.6,41.6247]
[1744776429395,1.25661,1591.7,1591.6,43.2599]
[1744776430196,2.87201,1591.7,1591.6,43.2599]
[1744776430799,2.87201,1591.7,1591.6,41.6247]
[1744776431100,1.25669,1591.6,1591.5,0.00941885]
[1744776431397,6.12769,1591.6,1591.5,40.80941885]
[1744776432000,6.12769,1591.6,1591.5,0.00941885]
[1744776432186,17.07759,1591.6,1591.5,0.00941885]
[1744776434397,3.2078,1591.6,1591.5,0.00941885]
[1744776434589,3.2078,1591.6,1591.5,1.26618885]
[1744776434796,1.25661,1591.7,1591.6,1.25668]
[1744776434991,1.25661,1591.7,1591.6,1.7436]
[1744776435390,3.2078,1592.0,1591.6,6.7436]
[1744776435596,1.25642,1592.0,1591.9,1.25646]
[1744776435799,6.1148,1592.2,1592.1,1.2563]
[1744776435989,1.25631,1592.1,1592.0,1.2563]
[1744776436304,1.25616,1592.3,1592.2,1.25618]
[1744776436490,4.47333885,1592.4,1592.2,42.05618]
[1744776436695,4.47333885,1592.4,1592.3,1.7436]
[1744776437306,1.25614,1592.3,1592.2,40.8]
[1744776437603,2.95844,1592.3,1592.2,40.8]
[1744776437897,1.25638,1592.0,1591.9,0.8443]
[1744776438095,3.1408,1592.1,1591.6,4.141]
[1744776438293,1.7023,1591.9,1591.7,42.5339]
[1744776438501,1.25653,1591.8,1591.7,42.5339]
[1744776439517,1.25653,1591.8,1591.7,43.79051]
[1744776442509,1.25652,1591.9,1591.8,1.25653]
[1744776442699,1.25652,1591.9,1591.8,1.6619]
[1744776443004,4.46421,1592.0,1591.9,1.25646]
[1744776443201,3.2078,1592.0,1591.9,7.01126]
[1744776443401,1.25634,1592.1,1592.0,1.25638]
[1744776443803,1.25634,1592.1,1592.0,2.98278]
[1744776443999,3.2078,1592.3,1592.0,1.7264]
[1744776444199,4.46394,1592.3,1592.2,1.25622]
[1744776444602,4.46394,1592.3,1592.2,42.05622]
[1744776445910,3.2078,1592.3,1592.2,42.05622]
[1744776446508,3.2078,1592.3,1592.2,46.25322]
[1744776446705,4.46364,1592.7,1592.6,1.2559]
[1744776447605,4.46364,1592.7,1592.6,2.952]
[1744776448410,1.2559,1592.6,1592.5,1.70551885]
[1744776448611,1.2559,1592.6,1592.5,1.26539885]
[1744776448815,4.9344,1592.7,1592.6,1.2559]
[1744776448816,6.19029,1592.7,1592.6,1.2559]
[1744776449015,4.46369,1592.7,1592.6,1.2559]
[1744776450311,4.46369,1592.7,1592.5,1.26532885]
[1744776450609,1.2559,1592.6,1592.5,1.26539885]
[1744776450805,1.2559,1592.6,1592.5,0.00941885]
[1744776451011,2.9649,1592.6,1592.5,0.00941885]
[1744776452713,2.9649,1592.6,1592.5,1.26539885]
[1744776454609,3.2078,1592.7,1592.6,1.2559]
[1744776455318,4.46362,1592.7,1592.6,5.4519]
[1744776455809,3.2078,1592.7,1592.6,5.4519]
[1744776456009,0.00941885,1592.8,1592.7,1.25582]
[1744776456208,0.00941885,1592.8,1592.7,2.06452]
[1744776456614,0.00941885,1592.8,1592.7,1.25582]
[1744776456819,1.25582,1592.7,1592.6,4.196]
[1744776457011,1.25582,1592.7,1592.6,5.4519]
[1744776458019,1.25582,1592.7,1592.6,4.196]
[1744776459018,1.2559,1592.6,1592.5,2.49941885]
[1744776459217,2.8888,1592.6,1592.5,2.49941885]
[1744776460219,2.8888,1592.6,1592.5,0.81811885]
[1744776463025,2.8888,1592.6,1592.5,2.07409885]
[1744776463321,2.8888,1592.6,1592.5,3.70439885]
[1744776466425,2.8888,1592.6,1592.5,2.44841885]
[1744776467323,2.8888,1592.6,1592.5,3.70439885]
[1744776468224,2.8888,1592.6,1592.5,2.44841885]
[1744776468427,2.8888,1592.6,1592.5,3.70439885]
[1744776468621,2.8888,1592.6,1592.5,2.44841885]
[1744776469726,2.8888,1592.6,1592.5,0.81811885]
[1744776469925,6.0966,1592.6,1592.5,0.00941885]
[1744776470729,6.0966,1592.6,1592.5,1.26539885]
[1744776470923,6.0966,1592.6,1592.5,0.00941885]
[1744776471120,6.0966,1592.6,1592.5,1.26539885]
[1744776471526,6.0966,1592.6,1592.5,2.94919885]
[1744776472425,4.8407,1592.6,1592.5,2.94919885]
[1744776472629,1.26522885,1592.8,1592.7,1.25582]
[1744776473030,0.00941885,1592.8,1592.7,1.25582]
[1744776473222,0.00941885,1592.8,1592.7,2.93962]
[1744776473732,1.26516885,1592.8,1592.7,2.93962]
[1744776473928,1.26516885,1592.8,1592.7,7.13462]
[1744776476425,2.99016885,1592.8,1592.7,5.8788]
[1744776476631,2.99016885,1592.8,1592.7,4.195]
[1744776477726,12.67041885,1592.8,1592.5,0.00941885]
[1744776478030,4.4637,1592.6,1592.5,1e-08]
[1744776478423,11.9653,1592.6,1592.5,1e-08]
[1744776481739,17.9013,1592.6,1592.5,1e-08]
[1744776482938,22.0883,1592.6,1592.5,1e-08]
[1744776483339,1.25646,1591.9,1591.8,1.6567]
[1744776483537,1.25646,1591.9,1591.7,4.187]
[1744776483538,1.25653,1591.8,1591.7,4.187]
[1744776484134,1.25653,1591.8,1591.7,44.987]
[1744776485440,1.25653,1591.8,1591.7,47.90031]
[1744776486734,0.00941885,1591.9,1591.8,1.25653]
[1744776486935,1.25619,1592.3,1592.2,1.25618]
[1744776487132,4.9214,1592.5,1592.1,4.188]
[1744776487441,1.25613,1592.4,1592.3,1.25613]
[1744776487635,1.25613,1592.4,1592.3,3.81683]
[1744776487834,1.25613,1592.4,1592.3,2.5607]
[1744776488538,9.19562703,1592.4,1592.3,2.5607]
[1744776489752,6.22589703,1592.4,1592.3,3.81684]
[1744776490651,7.48195703,1592.4,1592.3,3.81684]
[1744776491848,6.22589703,1592.4,1592.3,3.81684]
[1744776492447,6.22589703,1592.4,1592.3,1.25614]
[1744776492758,1.25614,1592.3,1592.2,40.8]
[1744776492955,2.92954,1592.3,1592.2,40.8]
[1744776493154,2.92954,1592.3,1592.2,42.05622]
[1744776493455,1.6734,1592.3,1592.2,43.68122]
[1744776494857,1.25614,1592.3,1592.2,43.68122]
[1744776495355,1.25614,1592.3,1592.2,43.68118]
[1744776496058,2.87313,1592.4,1592.3,1.25614]
[1744776496251,2.87313,1592.4,1592.3,4.60644]
[1744776496958,2.87313,1592.4,1592.3,3.3503]
[1744776497758,2.87313,1592.4,1592.3,4.60644]
[1744776498451,3.21721885,1592.5,1592.4,1.25606]
[1744776498654,3.21721885,1592.5,1592.4,2.86246]
[1744776498858,0.00941885,1592.5,1592.4,7.04946]
[1744776501662,7.34974179,1592.8,1592.7,1.25582]
[1744776501958,7.34974179,1592.8,1592.7,5.44282]
[1744776502155,4.14194179,1592.8,1592.7,5.44282]
[1744776502355,4.14194179,1592.8,1592.7,7.89372]
[1744776502656,5.39769179,1592.8,1592.7,7.89372]
[1744776502861,5.39769179,1592.8,1592.7,6.6379]
[1744776503053,4.14194179,1592.8,1592.7,7.89372]
[1744776504362,5.39769179,1592.8,1592.7,7.89372]
[1744776504559,5.39769179,1592.8,1592.7,6.6379]
[1744776504762,6.10135,1592.8,1592.7,4.187]
[1744776504963,1.25582,1592.7,1592.6,0.00941885]
[1744776505163,2.89362,1592.7,1592.6,0.00941885]
[1744776505363,7.89362,1592.7,1592.6,0.00941885]
[1744776506861,2.89362,1592.7,1592.6,0.00941885]
[1744776507063,2.89362,1592.7,1592.6,1.26531885]
[1744776507263,2.89362,1592.7,1592.6,0.00941885]
[1744776508061,8.82962,1592.7,1592.6,0.00941885]
[1744776511866,1.25614,1592.3,1592.2,40.8]
[1744776512766,2.86814,1592.3,1592.2,40.8]
[1744776513267,2.86814,1592.3,1592.2,42.05622]
[1744776513471,4.46385,1592.5,1592.4,1.25606]
[1744776513662,6.04435,1592.5,1592.4,1.25606]
[1744776514162,6.04435,1592.5,1592.4,2.96016]
[1744776514568,6.04435,1592.5,1592.4,1.7041]
[1744776515869,4.7883,1592.5,1592.2,41.6144]
[1744776516076,1.25622,1592.2,1592.1,0.00941885]
[1744776516775,2.86812,1592.2,1592.1,0.00941885]
[1744776517165,1.25646,1591.9,1591.8,5.1202]
[1744776517367,1.25653,1591.8,1591.7,12.51054662]
[1744776517565,2.86843,1591.8,1591.7,53.31054662]
[1744776518977,2.86843,1591.8,1591.7,12.51054662]
[1744776519269,1.25661,1591.7,1591.6,0.00941885]
[1744776519474,6.94361,1591.7,1591.6,0.00941885]
[1744776523262,6.10411,1591.7,1591.6,0.00941885]
[1744776523675,6.10411,1591.7,1591.6,1.61321885]
[1744776523974,2.89631,1591.7,1591.6,0.00941885]
[1744776524474,1.6397,1591.7,1591.6,2.86990885]
[1744776524669,1.2566,1591.8,1591.7,1.25661]
[1744776524876,1.2566,1591.8,1591.7,1.6038]
[1744776525174,1.25661,1591.7,1591.6,0.00941885]
[1744776525374,1.25661,1591.7,1591.6,1.26610885]
[1744776525576,1.25661,1591.7,1591.6,0.00941885]
[1744776525874,1.25661,1591.7,1591.6,40.80941885]
[1744776526063,4.46441,1591.7,1591.6,40.80941885]
[1744776526268,11.26071,1591.7,1591.6,0.00941885]
[1744776526480,12.88571,1591.7,1591.6,1e-08]
[1744776527873,17.88571,1591.7,1591.6,1e-08]
[1744776531075,1.25725,1590.9,1590.8,0.8571]
[1744776531385,1.25732,1590.8,1590.7,43.2439]
[1744776534585,1.2574,1590.7,1590.6,0.00941885]
[1744776534879,8.8449,1590.7,1590.6,0.00941885]
[1744776535085,13.8449,1590.7,1590.6,8.85e-06]
[1744776536283,8.8449,1590.7,1590.6,8.85e-06]
[1744776537084,13.8449,1590.7,1590.6,8.85e-06]
[1744776537277,14.6973,1590.7,1590.6,8.85e-06]
[1744776537587,9.6973,1590.7,1590.6,8.85e-06]
[1744776539388,14.6973,1590.7,1590.6,8.85e-06]
[1744776541979,9.6973,1590.7,1590.6,8.85e-06]
[1744776543186,1.25819,1589.7,1589.6,4.292]
[1744776543388,1.25817,1589.8,1589.7,1.25817]
[1744776543581,1.25817,1589.8,1589.7,43.76667]
[1744776543780,1.25817,1589.8,1589.7,47.5085]
[1744776544075,1.25817,1589.8,1589.7,48.76669]
[1744776544479,1.25817,1589.8,1589.7,50.41949]
[1744776545988,1.25817,1589.8,1589.7,44.1613]
[1744776546179,1.25817,1589.8,1589.7,49.1613]
[1744776548282,1.25817,1589.8,1589.7,3.3613]
[1744776548488,2.92587,1589.8,1589.7,3.3613]
[1744776548984,1.25819,1589.7,1589.6,0.00941885]
[1744776549188,4.46599,1589.7,1589.6,0.00941885]
[1744776549385,4.46599,1589.7,1589.6,1.62251885]
[1744776549989,4.46599,1589.7,1589.6,3.22391885]
[1744776550884,4.46599,1589.7,1589.6,0.00941885]
[1744776550885,13.75899,1589.7,1589.6,0.00941885]
[1744776551080,8.75899,1589.7,1589.6,0.00941885]
[1744776551285,6.08529,1589.7,1589.6,0.00941885]
[1744776551489,10.37829,1589.7,1589.6,0.00941885]
[1744776551887,6.08529,1589.7,1589.6,0.00941885]
[1744776552186,4.46599,1589.7,1589.6,0.00941885]
[1744776552389,4.46599,1589.7,1589.6,1.61081885]
[1744776552985,1.25819,1589.7,1589.6,1.61081885]
[1744776553184,3.21721885,1589.9,1589.6,6.61081885]
[1744776553388,0.00941885,1589.9,1589.8,1.25812]
[1744776553585,0.00941885,1589.9,1589.8,5.55112]
[1744776553891,3.2078,1590.4,1590.1,1.25782]
[1744776554084,3.2078,1590.6,1590.2,5.6976]
[1744776554283,4.46531,1590.6,1590.4,1.25759]
[1744776554488,4.46534,1590.6,1590.4,5.55061]
[1744776554687,8.01659,1591.0,1590.5,1.25756]
[1744776554891,3.15256885,1590.9,1590.6,0.00941885]
[1744776555093,1.2574,1590.7,1590.6,0.00941885]
[1744776556689,2.8933,1590.7,1590.6,0.00941885]
[1744776557597,1.2574,1590.7,1590.6,0.00941885]
[1744776557995,2.8933,1590.7,1590.6,0.00941885]
[1744776558502,7.8933,1590.7,1590.6,0.00941885]
[1744776559995,2.8933,1590.7,1590.6,0.00941885]
[1744776563396,1.2574,1590.7,1590.6,0.00941885]
[1744776564296,2.9775,1590.7,1590.6,0.00941885]
[1744776565298,2.9775,1590.7,1590.6,8.85e-06]
[1744776565504,15.5901,1590.7,1590.6,8.85e-06]
[1744776565704,1.25788,1590.1,1590.0,0.8564]
[1744776565902,4.46568,1590.1,1590.0,0.8564]
[1744776566200,1.25804,1589.9,1589.8,0.8006]
[1744776566499,1.25843,1589.4,1589.3,61.65677835]
[1744776566709,1.25843,1589.4,1589.3,62.51317835]
[1744776567001,1.25843,1589.4,1589.3,67.51317835]
[1744776567898,0.00941885,1589.5,1589.3,71.97942835]
[1744776567899,1.26780885,1589.5,1589.3,71.97942835]
[1744776568104,1.26780885,1589.5,1589.3,68.77165835]
[1744776568296,1.25843,1589.4,1589.3,68.77165835]
[1744776568597,1.26781885,1589.5,1589.3,68.77165835]
[1744776568795,1.25843,1589.4,1589.3,62.51317835]
[1744776569401,1.25843,1589.4,1589.3,63.77168835]
[1744776569903,1.25843,1589.4,1589.3,62.51317835]
[1744776570105,1.25843,1589.4,1589.3,64.11937835]
[1744776571207,1.25843,1589.4,1589.3,43.2626]
[1744776574700,2.97223,1589.4,1589.3,43.2626]
[1744776576007,1.25851,1589.3,1589.2,0.00941885]
[1744776576208,6.18011,1589.3,1589.2,0.00941885]
[1744776576601,15.59911,1589.3,1589.2,0.00941885]
[1744776576802,15.59911,1589.3,1589.2,8.85e-06]
[1744776577001,1.25907,1588.6,1588.5,3.2078]
[1744776577202,1.25915,1588.5,1588.4,1.7394]
[1744776577396,1.25905,1588.7,1588.4,1.7394]
[1744776577602,1.25907,1588.6,1588.5,42.05911]
[1744776577901,1.25907,1588.6,1588.5,40.8]
[1744776578199,1.25907,1588.6,1588.4,1.7394]
[1744776578200,1.25915,1588.5,1588.4,0.00627927]
[1744776578596,1.25915,1588.5,1588.4,42.54567927]
[1744776578597,2.87905,1588.5,1588.4,42.54567927]
[1744776578804,3.2078,1588.6,1588.4,48.80484927]
[1744776579008,4.46692,1588.6,1588.4,43.80484927]
[1744776579209,0.00941885,1588.7,1588.6,1.25907]
[1744776579413,0.00941885,1588.7,1588.6,4.46687]
[1744776579611,0.00941885,1588.7,1588.6,9.46687]
[1744776579903,1e-08,1588.7,1588.6,12.02977]
[1744776580108,4.8689,1589.3,1588.9,1.25877]
[1744776580308,1.25875,1589.1,1589.0,41.6731]
[1744776580509,1.25867,1589.2,1589.0,41.6731]
[1744776580711,4.46633,1589.3,1589.2,1.25859]
[1744776580898,1.6611,1589.5,1589.0,48.0276]
[1744776581206,1.25856,1589.3,1589.2,1.25859]
[1744776581399,0.00941885,1589.4,1589.2,1.25859]
[1744776581400,0.00941885,1589.4,1589.3,1.25851]
[1744776581907,1.25851,1589.3,1589.2,7.6278]
[1744776582208,1.25851,1589.3,1589.2,5.67853]
[1744776582409,0.00941885,1589.4,1589.0,44.8809]
[1744776582611,1.25867,1589.1,1589.0,41.6731]
[1744776583207,1.6251,1589.2,1589.0,41.6731]
[1744776583208,2.88374,1589.2,1589.0,41.6731]
[1744776583408,1.25864,1589.2,1589.0,42.93179]
[1744776583609,0.00941885,1589.4,1589.0,44.8809]
[1744776583810,1.25855,1589.3,1589.1,1.25867]
[1744776584516,1.25851,1589.3,1589.1,1.25867]
[1744776584805,1.25863,1589.2,1589.0,44.8809]
[1744776585012,0.00941885,1589.4,1589.0,42.9318]
[1744776585201,1.25866,1589.2,1589.0,42.9318]
[1744776585405,1.25866,1589.2,1589.1,1.25867]
[1744776585805,1.25853,1589.3,1589.2,1.25855]
[1744776586107,1.25851,1589.3,1589.2,4.42]
[1744776586616,1.25851,1589.3,1589.2,5.67859]
[1744776587008,1.26788885,1589.4,1589.3,1.25851]
[1744776587216,1.25851,1589.3,1589.2,5.67855]
[1744776588114,1.25863,1589.2,1589.1,1.25863]
[1744776588517,1.25858,1589.3,1589.2,1.25858]
[1744776589214,1.25861,1589.2,1589.1,1.25862]
[1744776589412,1.25867,1589.1,1589.0,41.6731]
[1744776590415,1.25867,1589.1,1589.0,40.8]
[1744776590813,2.91857,1589.1,1589.0,40.8]
[1744776591019,1.25907,1588.6,1588.5,1.686]
[1744776591521,1.25907,1588.6,1588.5,42.486]
[1744776591713,7.15391,1589.0,1588.5,42.486]
[1744776591913,1.25898,1588.8,1588.7,1.25897]
[1744776592119,1.25885,1588.9,1588.8,1.25884]
[1744776592619,3.14721,1588.9,1588.5,40.8]
[1744776592821,1.25907,1588.6,1588.5,40.8]
[1744776593916,1.25915,1588.5,1588.4,0.00627927]
[1744776594223,2.99845,1588.5,1588.4,0.00627927]
[1744776594416,2.99845,1588.5,1588.4,40.80627927]
[1744776594921,2.99845,1588.5,1588.4,0.00627927]
[1744776595421,2.99845,1588.5,1588.4,40.80627927]
[1744776596119,2.99845,1588.5,1588.4,0.00627927]
[1744776596619,2.99845,1588.5,1588.4,40.80627927]
[1744776596921,2.99845,1588.5,1588.4,0.00627927]
[1744776597119,1.25962,1587.9,1587.8,20.85677835]
[1744776597621,2.9926,1588.0,1587.7,7.6288]
[1744776597823,2.99256,1588.0,1587.9,1.25962]
[1744776598014,6.35607,1588.3,1588.0,1.2595]
[1744776598015,0.00941885,1588.1,1588.0,1.2595]
[1744776598418,0.00941885,1588.1,1588.0,6.2595]
[1744776598613,0.00941885,1588.1,1588.0,7.0973]
[1744776598822,0.00941885,1588.1,1588.0,11.6163]
[1744776599019,0.00941885,1588.1,1588.0,54.0485]
[1744776599423,0.00941885,1588.1,1588.0,49.0485]
[1744776599625,1.26887885,1588.1,1588.0,49.04854]
[1744776599829,1.26887885,1588.1,1588.0,47.789]
[1744776600123,0.00941885,1588.1,1588.0,49.04854]
[1744776600524,0.00941885,1588.1,1588.0,54.04854]
[1744776601117,1.5919,1588.6,1588.5,1.25915]
[1744776601118,1.25912,1588.6,1588.5,1.25915]
[1744776601523,1.25922,1588.4,1588.3,1.7048]
[1744776602021,1.25954,1588.0,1587.9,3.2078]
[1744776602227,1.25962,1587.9,1587.8,1.26907884]
[1744776602420,1.25962,1587.9,1587.8,42.06907884]
[1744776603022,1.25962,1587.9,1587.8,40.80941884]
[1744776603724,3.14933,1587.8,1587.4,3.2078]
[1744776603929,1.25994,1587.5,1587.4,3.2078]
[1744776604130,1.25994,1587.5,1587.4,44.0078]
[1744776604731,1.25994,1587.5,1587.4,3.2078]
[1744776604943,1.26002,1587.4,1587.3,0.00944912]
[1744776605725,1.26002,1587.4,1587.3,1.26954912]
[1744776605925,1.26002,1587.4,1587.3,0.00944912]
[1744776606329,9.46782,1587.4,1587.3,0.00630954]
[1744776606529,4.46782,1587.4,1587.3,0.00630954]
[1744776606833,6.20592,1587.4,1587.3,0.00630954]
[1744776608529,11.20592,1587.4,1587.3,0.00630954]
[1744776608935,15.72692,1587.4,1587.3,0.00630954]
[1744776609729,10.72692,1587.4,1587.3,0.00630954]
[1744776610035,6.20592,1587.4,1587.3,0.00630954]
[1744776610433,0.8005,1587.8,1587.4,1.25998]
[1744776610434,7.15766,1587.8,1587.4,1.25998]
[1744776610634,1.25964,1587.9,1587.5,7.7288]
[1744776610938,0.00941885,1588.1,1587.8,3.2078]
[1744776611128,0.00941885,1588.1,1588.0,4.46734]
[1744776611534,1.26887885,1588.1,1588.0,5.0]
[1744776611734,1.26887885,1588.1,1588.0,45.8]
[1744776611938,1.26887885,1588.1,1588.0,40.8]
[1744776613636,2.96917885,1588.1,1588.0,40.8]
[1744776615534,1.2597,1587.8,1587.7,4.522]
[1744776615740,1.25994,1587.5,1587.4,10.71085]
[1744776616239,1.26002,1587.4,1587.3,0.00630954]
[1744776617343,9.46782,1587.4,1587.3,0.00630954]
[1744776617644,13.98982,1587.4,1587.3,0.00630954]
[1744776617945,13.98982,1587.4,1587.3,9.54e-06]
[1744776618543,1.26073,1586.5,1586.4,6.1695]
[1744776618737,1.2607,1586.6,1586.4,10.62881145]
[1744776618938,1.25146145,1586.6,1586.4,51.42881145]
[1744776619138,1.26073,1586.5,1586.4,45.322]
[1744776619337,4.75144,1586.9,1586.4,50.24956145]
[1744776619338,1.6004,1586.9,1586.4,50.24956145]
[1744776619545,0.00021057,1586.6,1586.5,1.26073]
[1744776619745,0.00021057,1586.6,1586.5,2.99763]
[1744776620045,0.00021057,1586.6,1586.5,7.99763]
[1744776621043,1.26036,1587.0,1586.8,1.26045]
[1744776621347,1.26028,1587.1,1586.9,1.7369]
[1744776621646,1.26031,1587.1,1586.9,2.99727]
[1744776621840,1.6008,1587.2,1586.9,1.7369]
[1744776622047,1.26034,1587.0,1586.9,1.7369]
[1744776622545,1.26041,1586.9,1586.8,4.523]
[1744776622737,1.26041,1586.9,1586.8,6.1776]
[1744776623140,4.75227,1587.0,1586.6,4.523]
[1744776623341,1.26057,1586.7,1586.6,6.1776]
[1744776623538,1.26036,1587.0,1586.9,1.2604]
[1744776623838,7.95988,1587.1,1586.6,5.78362]
[1744776624341,1.26053,1586.8,1586.7,1.26057]
[1744776625346,1.26036,1587.0,1586.9,1.26037]
[1744776625546,6.06941,1587.1,1587.0,1.26034]
[1744776625947,2.86161,1587.1,1586.9,4.523]
[1744776626142,0.00944912,1587.2,1587.1,1.26026]
[1744776627648,1.26962912,1587.2,1587.1,1.26026]
[1744776628046,0.00944912,1587.2,1587.1,1.26026]